fUSD/lending_fUSD_20251017
["ID","MTS","AMOUNT","RATE_DAILY","PERIOD"]
[391604453,1760694639541,-5869.596762,0.00015,2]
[391604456,1760694639553,-647.0564865,0.00015,2]
[391604462,1760694639604,-528.2441004,0.00015,2]
[391604465,1760694639624,-923579.02425701,0.00015,2]
[391604501,1760694642401,-403.88544408,0.00015,2]
[391604502,1760694642458,-105569.99999996,0.00015,2]
[391604503,1760694642566,-73523.21025162,0.00015,2]
[391604504,1760694642576,-500.0,0.00015,2]
[391604505,1760694642585,-151.0,0.00015054,2]
[391604506,1760694642595,-151.0,0.00015058,2]
[391604507,1760694642605,-151.0,0.00015061,2]
[391604508,1760694642615,-151.0,0.00015064,2]
[391604509,1760694642625,-2637.53,0.00015255,2]
[391604510,1760694642635,-1532.49154243,0.00015453,2]
[391604511,1760694642645,-393.39,0.00015562,2]
[391604512,1760694642655,-1832.85322,0.0001585,2]
[391604513,1760694642664,-164.11352056,0.000159,2]
[391604514,1760694642674,-4000.0,0.0001595,3]
[391604515,1760694642683,-5000.0,0.0001595,3]
[391604516,1760694642693,-300.0,0.00016,2]
[391604517,1760694642703,-1634.86,0.00016,2]
[391604518,1760694642714,-7888.11069228,0.00016003,2]
[391604519,1760694642723,-393.39,0.00016138,2]
[391604520,1760694642733,-25983.86943202,0.000162,5]
[391604521,1760694642743,-177.75,0.00016318,2]
[391604522,1760694642752,-1000.0,0.00016457,2]
[391604523,1760694642762,-393.39,0.00016714,2]
[391604524,1760694642771,-1832.85323,0.0001685,2]
[391604525,1760694642781,-7888.11069228,0.00017107,2]
[391604526,1760694642791,-393.39,0.00017291,2]
[391604527,1760694642800,-913.17869982,0.00017574,2]
[391604528,1760694642810,-1832.85322,0.0001785,2]
[391604529,1760694642819,-393.39,0.00017867,2]
[391604530,1760694642829,-6369.80225068,0.000179,2]
[391604531,1760694642840,-7888.11069228,0.0001821,2]
[391604532,1760694642850,-1000.0,0.00018285,2]
[391604533,1760694642859,-285.04623613,0.00018313,2]
[391604534,1760694642869,-393.39,0.00018443,2]
[391604535,1760694642878,-503.0,0.00018493,2]
[391604536,1760694642888,-180.59,0.00018557,2]
[391604537,1760694642897,-1832.85323,0.0001885,2]
[391604538,1760694642907,-283.09517885,0.00019,2]
[391604539,1760694642916,-393.39,0.0001902,2]
[391604540,1760694642926,-153.0,0.00019303,2]
[391604541,1760694642935,-153.0,0.00019303,2]
[391604542,1760694642945,-153.0,0.00019303,2]
[391604543,1760694642955,-153.0,0.00019303,2]
[391604545,1760694642966,-153.0,0.00019303,2]
[391604546,1760694642975,-153.0,0.00019303,2]
[391604547,1760694642984,-153.0,0.00019303,2]
[391604548,1760694642993,-153.0,0.00019303,2]
[391604549,1760694643003,-153.0,0.00019303,2]
[391604550,1760694643012,-153.0,0.00019303,2]
[391604551,1760694643022,-153.0,0.00019303,2]
[391604552,1760694643031,-153.0,0.00019303,2]
[391604553,1760694643042,-183.0,0.00019305,2]
[391604554,1760694643051,-183.0,0.00019305,2]
[391604555,1760694643061,-183.0,0.00019305,2]
[391604556,1760694643071,-183.0,0.00019305,2]
[391604557,1760694643080,-183.0,0.00019305,2]
[391604558,1760694643090,-183.0,0.00019305,2]
[391604559,1760694643100,-183.0,0.00019305,2]
[391604560,1760694643109,-183.0,0.00019305,2]
[391604561,1760694643120,-183.0,0.00019305,2]
[391604562,1760694643130,-183.0,0.00019305,2]
[391604563,1760694643139,-183.0,0.00019305,2]
[391604564,1760694643149,-183.0,0.00019305,2]
[391604565,1760694643159,-183.0,0.00019305,2]
[391604566,1760694643168,-183.0,0.00019305,2]
[391604567,1760694643178,-7888.11069228,0.00019314,2]
[391604568,1760694643189,-153.0,0.00019314,2]
[391604569,1760694643199,-153.0,0.00019314,2]
[391604570,1760694643208,-153.0,0.00019314,2]
[391604571,1760694643218,-153.0,0.00019314,2]
[391604572,1760694643227,-153.0,0.00019314,2]
[391604573,1760694643238,-185.0,0.00019316,2]
[391604574,1760694643253,-185.0,0.00019316,2]
[391604575,1760694643263,-185.0,0.00019316,2]
[391604576,1760694643273,-185.0,0.00019316,2]
[391604577,1760694643283,-185.0,0.00019316,2]
[391604578,1760694643293,-185.0,0.00019316,2]
[391604579,1760694643303,-185.0,0.00019316,2]
[391604580,1760694643313,-185.0,0.00019316,2]
[391604581,1760694643323,-185.0,0.00019316,2]
[391604582,1760694643332,-185.0,0.00019316,2]
[391604583,1760694643342,-185.0,0.00019316,2]
[391604584,1760694643352,-185.0,0.00019316,2]
[391604585,1760694643362,-185.0,0.00019316,2]
[391604586,1760694643372,-185.0,0.00019316,2]
[391604587,1760694643381,-13354.1,0.00019406,2]
[391604588,1760694643396,-166.66,0.00019528,2]
[391604589,1760694643406,-393.39,0.00019596,2]
[391604590,1760694643416,-1832.85322,0.0001985,2]
[391604591,1760694643426,-166.66,0.00019939,2]
[391604592,1760694643438,-12296.65097409,0.0001995,15]
[391604593,1760694643448,-1150.31214129,0.0002,5]
[391604594,1760694643460,-564.72471224,0.0002,14]
[391604595,1760694643473,-250.0,0.0002002,7]
[391604596,1760694643483,-1000.0,0.00020114,2]
[391604597,1760694643495,-393.39,0.00020172,2]
[391604598,1760694643504,-505.21,0.00020187,2]
[391604599,1760694643514,-200.0,0.00020209,2]
[391604600,1760694643524,-994.19,0.00020229,2]
[391604601,1760694643534,-158.0110789,0.00020242,2]
[391604602,1760694643544,-913.17869982,0.00020247,2]
[391604603,1760694643554,-166.66,0.0002035,2]
[391604604,1760694643564,-250.0,0.00020369,2]
[391604605,1760694643573,-293.72616895,0.00020414,2]
[391604606,1760694643584,-5584.53331624,0.00020417,2]
[391604607,1760694643597,-2303.57737604,0.00020417,2]
[391604608,1760694643607,-753.19,0.00020667,2]
[391604609,1760694643622,-393.39,0.00020749,2]
[391604610,1760694643632,-166.66,0.00020762,2]
[391604611,1760694643642,-2753.0,0.00021119,2]
[391604612,1760694643652,-166.67,0.0002113,2]
[391604613,1760694643662,-166.66,0.00021173,2]
[391604614,1760694643672,-393.39,0.00021325,2]
[391604615,1760694643682,-7888.11069228,0.00021521,2]
[391604616,1760694643693,-166.66,0.00021584,2]
[391604617,1760694643703,-285.04623613,0.00021715,2]
[391604618,1760694643713,-393.39,0.00021901,2]
[391604619,1760694643723,-651.92,0.00021917,2]
[391604620,1760694643733,-651.92,0.00021917,2]
[391604621,1760694643743,-651.92,0.00021917,2]
[391604622,1760694643753,-651.92,0.00021917,2]
[391604623,1760694643763,-651.92,0.00021917,2]
[391604624,1760694643773,-1000.0,0.00021942,2]
[391604625,1760694643783,-303.29,0.00021999,2]
[391604626,1760694643793,-1000.0,0.00022,2]
[391604627,1760694643803,-1000.0,0.00022,2]
[391604628,1760694643813,-1000.0,0.00022,2]
[391604629,1760694643823,-5969.5,0.00022112,2]
[391604630,1760694643832,-180.59,0.00022269,2]
[391604631,1760694643842,-1000.0,0.000224,2]
[391604632,1760694643853,-1000.0,0.000224,2]
[391604633,1760694643862,-1000.0,0.000224,2]
[391604634,1760694643873,-1000.0,0.000224,2]
[391604635,1760694643883,-1000.0,0.000224,2]
[391604636,1760694643892,-1231.0,0.000224,2]
[391604637,1760694643902,-5000.0,0.00022495,2]
[391604638,1760694643911,-300.0,0.00022624,2]
[391604639,1760694643921,-300.0,0.00022624,2]
[391604640,1760694643931,-300.0,0.00022624,2]
[391604641,1760694643941,-300.0,0.00022624,2]
[391604642,1760694643951,-300.0,0.00022624,2]
[391604643,1760694644054,-300.0,0.00022624,2]
[391604644,1760694644064,-300.0,0.00022624,2]
[391604645,1760694644074,-300.0,0.00022624,2]
[391604646,1760694644083,-300.0,0.00022624,2]
[391604647,1760694644093,-300.0,0.00022624,2]
[391604648,1760694644103,-300.0,0.00022624,2]
[391604649,1760694644112,-300.0,0.00022624,2]
[391604650,1760694644122,-300.0,0.00022624,2]
[391604651,1760694644131,-300.0,0.00022624,2]
[391604652,1760694644142,-338.665925,0.00022624,2]
[391604653,1760694644155,-7888.11069228,0.00022624,2]
[391604654,1760694644164,-322.6107,0.00022681,2]
[391604655,1760694644174,-646.65982734,0.00022681,2]
[391604656,1760694644184,-1000.0,0.00022681,2]
[391604657,1760694644194,-1000.0,0.00022681,2]
[391604658,1760694644203,-1000.0,0.00022681,2]
[391604659,1760694644214,-1000.0,0.00022681,2]
[391604660,1760694644224,-1000.0,0.00022681,2]
[391604661,1760694644234,-1000.0,0.00022681,2]
[391604662,1760694644243,-1000.0,0.00022681,2]
[391604663,1760694644253,-1000.0,0.00022681,2]
[391604664,1760694644262,-1000.0,0.00022681,2]
[391604665,1760694644272,-1000.0,0.00022681,2]
[391604666,1760694644281,-1000.0,0.00022681,2]
[391604667,1760694644291,-1000.0,0.00022681,2]
[391604668,1760694644301,-267.46074303,0.00022681,2]
[391604669,1760694644310,-682.16,0.00022794,2]
[391604670,1760694644320,-1494.65,0.00022794,2]
[391604671,1760694644329,-651.92,0.00022799,2]
[391604672,1760694644339,-913.17869982,0.00022921,2]
[391604673,1760694644349,-204.06937007,0.00023014,2]
[391604674,1760694644358,-150.0,0.00023014,2]
[391604675,1760694644367,-253.58785703,0.00023014,2]
[391604676,1760694644377,-271.80397119,0.00023014,2]
[391604677,1760694644387,-150.0,0.00023014,2]
[391604678,1760694644399,-150.0,0.00023014,2]
[391604679,1760694644409,-500.0,0.00023014,2]
[391604680,1760694644419,-264.90399663,0.00023014,2]
[391604681,1760694644430,-151.8978061,0.00023014,2]
[391604682,1760694644440,-201.72794214,0.00023014,2]
[391604683,1760694644450,-172.20891484,0.00023014,2]
[391604684,1760694644460,-150.0,0.00023069,2]
[391604685,1760694644474,-150.0,0.00023069,2]
[391604686,1760694644483,-500.0,0.00023069,2]
[391604687,1760694644493,-172.23189463,0.00023124,2]
[391604688,1760694644508,-200.0,0.00023124,2]
[391604689,1760694644518,-500.0,0.00023124,2]
[391604690,1760694644527,-365.46,0.00023212,2]
[391604691,1760694644537,-1092.61,0.00023212,2]
[391604692,1760694644547,-168.24,0.00023212,2]
[391604693,1760694644557,-351.92,0.00023212,2]
[391604694,1760694644567,-153.44,0.00023317,2]
[391604695,1760694644576,-1494.0,0.00023417,2]
[391604696,1760694644586,-1494.0,0.0002344,2]
[391604697,1760694644596,-731.0,0.00023508,2]
[391604698,1760694644605,-731.0,0.00023592,2]
[391604699,1760694644615,-731.0,0.00023688,2]
[391604700,1760694644625,-7888.11069228,0.00023728,2]
[391604701,1760694644635,-731.0,0.00023738,2]
[391604702,1760694644645,-43629.05848411,0.000238,7]
[391604703,1760694644654,-150.0,0.00023835,2]
[391604704,1760694644663,-166.34,0.00023836,2]
[391604705,1760694644673,-199.88,0.00023838,2]
[391604706,1760694644682,-2639.670811,0.00023917,2]
[391604707,1760694644695,-1745.92062687,0.00023917,2]
[391604708,1760694644704,-731.0,0.00024017,2]
[391604709,1760694644716,-731.0,0.00024022,2]
[391604710,1760694644725,-176.05,0.00024027,2]
[391604711,1760694644735,-413.65,0.00024027,2]
[391604712,1760694644744,-150.85,0.00024027,2]
[391604713,1760694644754,-176.05,0.00024027,2]
[391604714,1760694644763,-150.0,0.00024027,2]
[391604715,1760694644772,-315.72,0.00024027,2]
[391604716,1760694644782,-413.65,0.00024027,2]
[391604717,1760694644791,-150.0,0.00024027,2]
[391604718,1760694644801,-176.05,0.00024027,2]
[391604719,1760694644810,-150.0,0.00024027,2]
[391604720,1760694644819,-413.65,0.00024027,2]
[391604721,1760694644829,-413.65,0.00024027,2]
[391604722,1760694644839,-150.0,0.00024027,2]
[391604723,1760694644848,-150.0,0.00024027,2]
[391604724,1760694644858,-150.0,0.00024027,2]
[391604725,1760694644867,-150.0,0.00024027,2]
[391604726,1760694644877,-827.24,0.00024034,2]
[391604727,1760694644886,-413.65,0.00024034,2]
[391604728,1760694644896,-1093.4,0.00024034,2]
[391604729,1760694644905,-546.7,0.00024034,2]
[391604730,1760694644915,-546.7,0.00024034,2]
[391604731,1760694644924,-335.87,0.00024034,2]
[391604732,1760694644934,-546.7,0.00024034,2]
[391604733,1760694644944,-168.24,0.00024034,2]
[391604734,1760694644954,-168.24,0.00024034,2]
[391604735,1760694644964,-168.24,0.00024034,2]
[391604736,1760694644974,-249.8,0.00024034,2]
[391604737,1760694644983,-168.24,0.00024034,2]
[391604738,1760694644993,-168.24,0.00024034,2]
[391604739,1760694645002,-168.24,0.00024034,2]
[391604740,1760694645012,-168.49,0.00024034,2]
[391604741,1760694645022,-168.24,0.00024034,2]
[391604742,1760694645032,-168.24,0.00024034,2]
[391604743,1760694645042,-546.7,0.00024034,2]
[391604744,1760694645051,-168.09,0.00024034,2]
[391604745,1760694645061,-546.7,0.00024034,2]
[391604746,1760694645071,-168.24,0.00024034,2]
[391604747,1760694645080,-168.24,0.00024034,2]
[391604748,1760694645091,-546.7,0.00024034,2]
[391604749,1760694645100,-168.24,0.00024034,2]
[391604750,1760694645109,-191.8,0.00024047,2]
[391604751,1760694645119,-334.5472959,0.0002405,2]
[391604752,1760694645129,-287.25283801,0.0002405,2]
[391604753,1760694645139,-731.0,0.00024052,2]
[391604754,1760694645148,-168.0,0.00024054,2]
[391604755,1760694645158,-168.0,0.00024066,2]
[391604756,1760694645167,-2496.2606708,0.00024072,2]
[391604757,1760694645181,-168.0,0.00024147,2]
[391604758,1760694645196,-1000.0,0.00024158,2]
[391604759,1760694645207,-168.0,0.00024165,2]
[391604760,1760694645218,-731.0,0.00024255,2]
[391604761,1760694645228,-168.0,0.00024405,2]
[391604762,1760694645237,-150.0,0.00024415,2]
[391604763,1760694645247,-14368.48432759,0.00024416,2]
[391604764,1760694645262,-1602.36632086,0.00024457,3]
[391604771,1760694645655,-535.78223217,0.00013699,2]
[391604772,1760694645667,-261.90776783,0.00013699,2]
[391604773,1760694645677,-11024.34903216,0.00024457,3]
[391604774,1760694646153,-168.24,0.00024034,2]
[391604775,1760694646163,-651.98542784,0.00024457,3]
[391604781,1760694806149,512.0,0.00027338,120]
[391604782,1760694812756,500.0,0.00027216,120]
[391604789,1760695130798,250.29,0.00010366,2]
[391604790,1760695130991,250.29,0.00010911,2]
[391604791,1760695131418,250.29,0.00011457,2]
[391604792,1760695131650,250.29,0.00012002,2]
[391604793,1760695131880,250.29,0.00012548,2]
[391604794,1760695148939,512.73601522,0.000142,7]
[391604797,1760695314585,778.01027909,0.00027397,120]
[391604801,1760695398190,-250.29,0.00013093,2]
[391604802,1760695398216,-38.93432468,0.00013366,3]
[391604803,1760695400356,-195.0,0.00013366,3]
[391604804,1760695403174,-186.98385286,0.00013366,3]
[391604805,1760695405440,-166.66,0.00013366,3]
[391604806,1760695406964,-259.77412011,0.00013366,3]
[391604807,1760695411200,-501.87,0.00013366,3]
[391604809,1760695655923,-3650.77770235,0.00013366,3]
[391604810,1760695655950,-250.29,0.00013639,2]
[391604811,1760695655973,-195.0,0.00013706,2]
[391604812,1760695655998,-1200.0,0.00013841,2]
[391604813,1760695656022,-300.0,0.00013842,2]
[391604814,1760695656045,-372.16054173,0.00013842,2]
[391604815,1760695656070,-195.0,0.00013842,2]
[391604816,1760695656094,-300.0,0.00014009,2]
[391604817,1760695656119,-300.0,0.00014009,2]
[391604818,1760695656142,-5000.0,0.0001401,3]
[391604819,1760695656166,-5000.0,0.0001401,3]
[391604820,1760695656190,-3236.77175592,0.0001401,3]
[391604828,1760695758470,500.0,8.219e-05,2]
[391604829,1760695759582,500.0,0.00027397,120]
[391604857,1760695831612,-492.77,0.00013699,2]
[391604858,1760695831623,-173.23,0.00013892,3]
[391604859,1760695831637,-4826.77,0.00013892,3]
[391604860,1760695831647,-172.76268056,0.00014085,2]
[391604861,1760695831659,-1200.0,0.00014096,2]
[391604862,1760695831670,-300.0,0.00014096,2]
[391604863,1760695831681,-5000.0,0.00014097,3]
[391604864,1760695831692,-250.29,0.00014185,2]
[391604865,1760695831703,-5000.0,0.0001434,3]
[391604866,1760695831716,-195.0,0.00014703,2]
[391604867,1760695831731,-195.0,0.00014703,2]
[391604868,1760695831743,-250.29,0.0001473,2]
[391604869,1760695831753,-500.0,0.00014999,2]
[391604870,1760695831764,-500.0,0.00014999,2]
[391604871,1760695831775,-500.0,0.00014999,2]
[391604872,1760695831786,-500.0,0.00014999,2]
[391604873,1760695831798,-500.0,0.00014999,2]
[391604874,1760695831809,-5000.0,0.00015068,3]
[391604875,1760695831819,-151.0,0.00015101,2]
[391604876,1760695831830,-151.0,0.00015108,2]
[391604877,1760695831841,-151.0,0.00015115,2]
[391604878,1760695831852,-250.29,0.00015276,2]
[391604879,1760695831863,-151.0,0.00015293,2]
[391604880,1760695831875,-5000.0,0.00015411,3]
[391604882,1760695831885,-1680.0,0.00015506,2]
[391604885,1760695831896,-250.29,0.00015821,2]
[391604887,1760695831907,-250.29,0.00016367,2]
[391604889,1760695831917,-250.29,0.00016912,2]
[391604891,1760695831928,-480.0,0.00017057,2]
[391604893,1760695831939,-250.29,0.00017458,2]
[391604896,1760695831953,-150.0,0.00017458,2]
[391604898,1760695831967,-3379.78383679,0.00017943,2]
[391604900,1760695831977,-250.29,0.00018004,2]
[391604902,1760695831987,-250.29,0.00018549,2]
[391604904,1760695831997,-157.0,0.00018904,2]
[391604906,1760695832007,-157.0,0.00018904,2]
[391604909,1760695832017,-157.0,0.00018904,2]
[391604911,1760695832027,-157.0,0.00018904,2]
[391604913,1760695832037,-157.0,0.00018904,2]
[391604915,1760695832049,-157.0,0.00018904,2]
[391604917,1760695832060,-157.0,0.00018904,2]
[391604919,1760695832071,-157.0,0.00018904,2]
[391604922,1760695832082,-157.0,0.00018904,2]
[391604924,1760695832093,-157.0,0.00018904,2]
[391604926,1760695832104,-157.0,0.00018904,2]
[391604928,1760695832114,-157.0,0.00018904,2]
[391604930,1760695832124,-157.0,0.00018904,2]
[391604932,1760695832135,-157.0,0.00018904,2]
[391604935,1760695832149,-153.0,0.00018904,2]
[391604937,1760695832160,-153.0,0.00018904,2]
[391604939,1760695832171,-153.0,0.00018904,2]
[391604941,1760695832182,-153.0,0.00018904,2]
[391604943,1760695832191,-153.0,0.00018904,2]
[391604945,1760695832202,-153.0,0.00018904,2]
[391604947,1760695832214,-153.0,0.00018904,2]
[391604949,1760695832225,-153.0,0.00018904,2]
[391604951,1760695832235,-153.0,0.00018904,2]
[391604953,1760695832246,-153.0,0.00018904,2]
[391604955,1760695832256,-153.0,0.00018904,2]
[391604957,1760695832267,-153.0,0.00018904,2]
[391604959,1760695832278,-153.0,0.00018904,2]
[391604961,1760695832289,-153.0,0.00018904,2]
[391604964,1760695832299,-153.0,0.00018904,2]
[391604966,1760695832310,-153.0,0.00018904,2]
[391604968,1760695832321,-153.0,0.00018904,2]
[391604970,1760695832331,-153.0,0.00018904,2]
[391604972,1760695832344,-153.0,0.00018904,2]
[391604974,1760695832355,-153.0,0.00018904,2]
[391604976,1760695832366,-153.0,0.00018904,2]
[391604978,1760695832377,-153.0,0.00018904,2]
[391604979,1760695832387,-153.0,0.00018904,2]
[391604980,1760695832398,-153.0,0.00018904,2]
[391604981,1760695832409,-166.66,0.00018936,2]
[391604982,1760695832419,-250.29,0.00019095,2]
[391604983,1760695832429,-166.66,0.00019335,2]
[391604984,1760695832439,-2425.12,0.00019387,2]
[391604985,1760695832449,-250.0,0.0001942,7]
[391604986,1760695832459,-610.0,0.00019486,2]
[391604987,1760695832471,-200.0,0.00019502,2]
[391604988,1760695832481,-150.0,0.00019579,2]
[391604989,1760695832491,-250.29,0.0001964,2]
[391604991,1760695832502,-166.66,0.00019734,2]
[391604993,1760695832514,-1000.0,0.00020018,2]
[391604995,1760695832524,-1000.0,0.00020018,2]
[391604997,1760695832534,-625.813,0.00020018,2]
[391605000,1760695832545,-1000.0,0.00020018,2]
[391605002,1760695832555,-1000.0,0.00020018,2]
[391605004,1760695832566,-1000.0,0.00020018,2]
[391605006,1760695832576,-1000.0,0.00020018,2]
[391605008,1760695832587,-1000.0,0.00020018,2]
[391605010,1760695832598,-1000.0,0.00020018,2]
[391605012,1760695832608,-946.85,0.00020043,2]
[391605015,1760695832620,-5119.16,0.00020058,2]
[391605018,1760695832646,-226.87,0.00020124,30]
[391605021,1760695832658,-166.66,0.00020132,2]
[391605023,1760695832668,-250.29,0.00020186,2]
[391605025,1760695832680,-492.77,0.00020187,2]
[391605027,1760695832692,-412.5105853,0.00020414,2]
[391605030,1760695832703,-166.66,0.00020531,2]
[391605032,1760695832716,-250.29,0.00020731,2]
[391605034,1760695832728,-166.66,0.0002093,2]
[391605036,1760695832740,-1464.41756641,0.0002151,2]
[391605038,1760695832752,-500.0,0.00021593,2]
[391605041,1760695832763,-555.33,0.00021662,2]
[391605043,1760695832775,-512.0,0.0002187,2]
[391605045,1760695832788,-666.0,0.00021872,3]
[391605047,1760695832799,-5000.0,0.00021918,2]
[391605049,1760695832811,-2751.0,0.00022184,2]
[391605052,1760695832821,-493.78232308,0.00022551,2]
[391605054,1760695832832,-412.5105853,0.00022879,2]
[391605056,1760695832843,-2770.492,0.00022921,2]
[391605058,1760695832854,-186.518,0.00022921,2]
[391605060,1760695832864,-150.0,0.00023124,2]
[391605062,1760695832875,-150.0,0.00023124,2]
[391605065,1760695832886,-150.0,0.00023124,2]
[391605067,1760695832897,-254.69560469,0.00023124,2]
[391605069,1760695832907,-200.0,0.00023124,2]
[391605071,1760695832918,-150.0,0.00023124,2]
[391605073,1760695832929,-150.0,0.00023124,2]
[391605075,1760695832940,-150.0,0.00023124,2]
[391605077,1760695832950,-500.0,0.00023124,2]
[391605080,1760695832962,-185.41247812,0.00023124,2]
[391605082,1760695832973,-150.0,0.00023124,2]
[391605084,1760695832989,-150.0,0.00023124,2]
[391605086,1760695833000,-150.0,0.00023124,2]
[391605089,1760695833011,-150.0,0.00023124,2]
[391605091,1760695833022,-150.0,0.00023124,2]
[391605093,1760695833033,-150.0,0.00023124,2]
[391605095,1760695833043,-150.0,0.00023124,2]
[391605097,1760695833055,-150.0,0.00023124,2]
[391605099,1760695833066,-150.0,0.00023124,2]
[391605102,1760695833077,-201.24027039,0.00023124,2]
[391605104,1760695833089,-251.83634922,0.00023124,2]
[391605106,1760695833101,-150.0,0.00023124,2]
[391605108,1760695833112,-150.0,0.00023124,2]
[391605110,1760695833124,-150.0,0.00023124,2]
[391605113,1760695833135,-150.0,0.00023124,2]
[391605115,1760695833146,-150.0,0.00023124,2]
[391605134,1760695833334,-150.0,0.00023124,2]
[391605136,1760695833345,-150.0,0.00023124,2]
[391605138,1760695833356,-150.0,0.00023124,2]
[391605140,1760695833366,-150.0,0.00023124,2]
[391605142,1760695833376,-150.0,0.00023124,2]
[391605144,1760695833386,-150.0,0.00023124,2]
[391605146,1760695833396,-150.0,0.00023124,2]
[391605148,1760695833409,-200.0,0.00023179,2]
[391605151,1760695833419,-150.0,0.00023179,2]
[391605153,1760695833430,-150.0,0.00023179,2]
[391605155,1760695833441,-150.0,0.00023179,2]
[391605157,1760695833451,-500.0,0.00023179,2]
[391605159,1760695833463,-150.0,0.00023179,2]
[391605161,1760695833474,-150.0,0.00023179,2]
[391605163,1760695833483,-150.0,0.00023179,2]
[391605165,1760695833493,-150.0,0.00023179,2]
[391605167,1760695833503,-150.0,0.00023179,2]
[391605169,1760695833513,-150.0,0.00023179,2]
[391605171,1760695833523,-150.0,0.00023179,2]
[391605173,1760695833534,-150.0,0.00023179,2]
[391605175,1760695833544,-150.0,0.00023179,2]
[391605177,1760695833554,-150.0,0.00023179,2]
[391605179,1760695833564,-150.0,0.00023179,2]
[391605181,1760695833574,-150.0,0.00023179,2]
[391605183,1760695833584,-150.0,0.00023179,2]
[391605185,1760695833595,-150.0,0.00023179,2]
[391605187,1760695833605,-150.0,0.00023205,2]
[391605189,1760695833615,-413.65,0.00023205,2]
[391605191,1760695833624,-823.68,0.00023205,2]
[391605193,1760695833634,-546.7,0.00023212,2]
[391605195,1760695833644,-544.96,0.00023212,2]
[391605196,1760695833660,-186.76,0.00023212,2]
[391605197,1760695833670,-150.0,0.00023234,2]
[391605198,1760695833680,-150.0,0.00023234,2]
[391605199,1760695833690,-150.0,0.00023234,2]
[391605200,1760695833701,-177.87790849,0.00023234,2]
[391605201,1760695834272,-38.86070841,0.00023234,2]
[391605202,1760695834283,-150.9064378,0.00023234,2]
[391605203,1760695834293,-150.0,0.00023234,2]
[391605204,1760695834303,-150.0,0.00023234,2]
[391605205,1760695834313,-150.0,0.00023234,2]
[391605206,1760695834324,-150.0,0.00023234,2]
[391605207,1760695834334,-200.0,0.00023234,2]
[391605208,1760695834343,-200.0,0.00023234,2]
[391605209,1760695834354,-150.0,0.00023234,2]
[391605210,1760695834364,-200.0,0.00023234,2]
[391605211,1760695834375,-150.0,0.00023234,2]
[391605212,1760695834384,-150.0,0.00023234,2]
[391605213,1760695834395,-322.6107,0.00023281,2]
[391605214,1760695834405,-199.67701257,0.00023281,2]
[391605215,1760695834415,-1000.0,0.00023281,2]
[391605216,1760695834429,-1000.0,0.00023281,2]
[391605217,1760695834439,-1000.0,0.00023281,2]
[391605218,1760695834449,-1000.0,0.00023281,2]
[391605219,1760695834459,-644.46860119,0.00023281,2]
[391605220,1760695834471,-277.35679052,0.00023281,2]
[391605221,1760695834481,-150.0,0.00023288,2]
[391605222,1760695834491,-150.0,0.00023288,2]
[391605223,1760695834502,-150.0,0.00023288,2]
[391605224,1760695834511,-150.0,0.00023288,2]